bitfinex-derivatives/quotes_SOLF0:USTF0_20250904
["timestamp","ask_amount","ask_price","bid_price","bid_amount"]
[1756989335628,7.75,207.55,207.54,0.03407492]
[1756989338929,4.3349,207.56,207.54,0.03407492]
[1756989340236,7.75,207.55,207.54,0.03407492]
[1756989342027,4.3349,207.56,207.54,0.03407492]
[1756989342234,4.3344,207.58,207.54,0.03407492]
[1756989342437,12.1044,207.58,207.54,0.03407492]
[1756989342733,7.77,207.6,207.54,0.03407492]
[1756989342932,7.77,207.58,207.54,0.03407492]
[1756989343133,67.4203,207.59,207.54,0.03407492]
[1756989343439,7.77,207.55,207.54,0.03407492]
[1756989345725,4.3349,207.56,207.54,0.03407492]
[1756989345930,7.77,207.55,207.54,0.03407492]
[1756989348336,75.2047,207.55,207.44,11.54144159]
[1756989348532,75.2104,207.53,207.44,7.51]
[1756989349623,0.03336467,207.51,207.44,7.51]
[1756989349827,4.3365,207.48,207.44,7.51]
[1756989350334,4.3365,207.48,207.44,11.54144159]
[1756989350935,4.3365,207.48,207.44,7.51]
[1756989351137,4.3365,207.48,207.43,4.87015749]
[1756989351437,4.3365,207.48,207.44,11.54144159]
[1756989351638,4.3368,207.47,207.44,7.51]
[1756989352334,4.337,207.46,207.42,4.08367707]
[1756989352540,4.337,207.46,207.42,7.51]
[1756989353140,0.03576817,207.46,207.43,7.51]
[1756989353333,0.03576817,207.46,207.44,7.51]
[1756989353740,0.03576817,207.46,207.43,4.03144159]
[1756989353941,7.77,207.54,207.45,4.08367707]
[1756989354240,7.77,207.54,207.46,7.51]
[1756989354629,4.3361,207.5,207.46,7.51]
[1756989355032,7.77,207.54,207.46,7.51]
[1756989355340,7.77,207.58,207.46,11.57437213]
[1756989355736,4.3355,207.53,207.46,114.39107213]
[1756989355935,7.77,207.56,207.46,110.05437213]
[1756989356338,7.77,207.56,207.46,110.02144159]
[1756989356538,7.77,207.56,207.49,0.03473589]
[1756989356840,4.3357,207.52,207.49,0.03473589]
[1756989357043,4.3357,207.52,207.49,7.54473589]
[1756989357838,4.3357,207.52,207.49,0.03473589]
[1756989358039,12.1057,207.52,207.49,0.03473589]
[1756989358540,4.3357,207.52,207.49,0.03473589]
[1756989359336,4.3352,207.54,207.5,7.51]
[1756989359534,4.3352,207.54,207.53,1.63392426]
[1756989359738,12.1052,207.54,207.53,1.63392426]
[1756989359948,4.3357,207.52,207.51,1.63392426]
[1756989360740,67.4277,207.57,207.51,1.63392426]
[1756989361337,4.3355,207.53,207.51,1.63392426]
[1756989361546,4.3355,207.53,207.49,1.66866015]
[1756989361547,7.77,207.53,207.49,1.66866015]
[1756989362250,7.77,207.53,207.43,4.03144159]
[1756989362251,7.77,207.49,207.43,4.03144159]
[1756989362441,7.77,207.49,207.39,0.83904956]
[1756989362442,9.40392426,207.51,207.44,1.63392426]
[1756989363047,4.3369,207.46,207.44,1.63392426]
[1756989363247,12.1069,207.46,207.42,1.63392426]
[1756989363451,0.0337444,207.47,207.44,1.63392426]
[1756989363648,4.3704444,207.47,207.44,1.63392426]
[1756989363851,7.77,207.46,207.44,1.63392426]
[1756989364355,7.77,207.46,207.42,1.63392426]
[1756989364646,12.107,207.46,207.42,1.63392426]
[1756989364847,4.337,207.46,207.42,1.63392426]
[1756989365047,7.77,207.45,207.42,1.63392426]
[1756989366547,0.0337444,207.47,207.4,4.04917449]
[1756989366847,7.77,207.46,207.4,1.63392426]
[1756989367744,1.66766866,207.47,207.42,1.63392426]
[1756989367745,0.0337444,207.47,207.42,1.63392426]
[1756989368144,4.3372,207.45,207.42,1.63392426]
[1756989368750,7.77,207.46,207.38,4.04917449]
[1756989368751,7.77,207.46,207.4,1.63392426]
[1756989368951,7.77,207.44,207.38,1.63392426]
[1756989369146,7.77,207.44,207.37,8.3491406]
[1756989369345,12.1073,207.44,207.39,9.14392426]
[1756989369746,0.03120792,207.43,207.39,9.14392426]
[1756989370153,7.80120792,207.43,207.39,1.63392426]
[1756989370544,7.77,207.42,207.39,1.63392426]
[1756989370752,12.108,207.41,207.37,0.8391406]
[1756989371049,0.03120792,207.43,207.4,1.63392426]
[1756989371448,7.80120792,207.43,207.4,1.63392426]
[1756989371644,4.36870792,207.43,207.4,1.63392426]
[1756989371848,0.03120792,207.43,207.4,9.14392426]
[1756989372148,0.03120792,207.43,207.42,1.63392426]
[1756989372353,0.03120792,207.43,207.36,11.50917449]
[1756989372652,0.03120792,207.43,207.39,1.63392426]
[1756989372954,0.03120792,207.43,207.39,7.46]
[1756989373148,4.36870792,207.43,207.41,1.63392426]
[1756989373344,11.62870792,207.43,207.41,1.63392426]
[1756989373850,0.03120792,207.43,207.42,7.46]
[1756989374152,0.03120792,207.43,207.41,1.63392426]
[1756989374357,0.03120792,207.43,207.4,1.63392426]
[1756989375753,0.03120792,207.43,207.4,9.09392426]
[1756989376356,0.03120792,207.43,207.41,7.46]
[1756989376646,0.03120792,207.43,207.42,9.09392426]
[1756989377254,7.29120792,207.43,207.36,4.04917449]
[1756989377452,7.29120792,207.43,207.37,1.63392426]
[1756989377949,4.3384,207.39,207.35,0.83917096]
[1756989378154,7.26,207.4,207.34,1.63392426]
[1756989378355,8.89392426,207.4,207.34,1.63392426]
[1756989378655,4.3388,207.37,207.32,11.50917449]
[1756989378855,4.3388,207.37,207.33,1.63392426]
[1756989379156,8.89392426,207.4,207.33,1.63392426]
[1756989379454,0.03328496,207.37,207.33,9.09392426]
[1756989379954,0.03328496,207.37,207.34,7.46]
[1756989380448,0.03328496,207.37,207.35,1.63392426]
[1756989380642,0.03328496,207.37,207.36,7.46]
[1756989381654,0.03328496,207.37,207.32,7.46]
[1756989381855,0.03328496,207.37,207.35,1.63392426]
[1756989382455,0.03328496,207.37,207.35,9.09392426]
[1756989382957,0.03328496,207.37,207.36,7.46]
[1756989384056,0.03328496,207.37,207.3,314.36917449]
[1756989384354,0.03328496,207.37,207.3,310.32]
[1756989385349,4.3395,207.34,207.3,310.32]
[1756989386151,0.03328496,207.37,207.3,7.46]
[1756989386356,0.03328496,207.37,207.27,2.55727866]
[1756989386357,4.3402,207.3,207.27,14.62]
[1756989386553,4.3402,207.3,207.27,90.2]
[1756989386751,4.3402,207.3,207.27,97.66]
[1756989387051,4.3402,207.3,207.27,7.46]
[1756989387252,0.03374802,207.31,207.27,7.46]
[1756989387453,7.26,207.3,207.2,11.50917449]
[1756989387651,7.26,207.3,207.2,7.46]
[1756989388047,7.26,207.26,207.17,0.83987981]
[1756989388453,7.26,207.24,207.13,4.04917449]
[1756989388653,74.8107,207.19,207.12,4.04917449]
[1756989388950,7.26,207.19,207.1,7.46]
[1756989389156,0.03460573,207.18,207.1,7.46]
[1756989389856,0.03460573,207.18,207.13,7.46]
[1756989390154,186.29144568,207.28,207.14,67.5661]
[1756989390354,7.26,207.29,207.16,7.46]
[1756989390760,7.26,207.29,207.18,7.46]
[1756989391155,67.5243,207.27,207.12,4.04917449]
[1756989391456,67.5056,207.33,207.17,132.08]
[1756989391654,7.26,207.32,207.18,7.46]
[1756989392155,67.5207,207.28,207.23,0.03479672]
[1756989392349,7.26,207.27,207.23,0.03479672]
[1756989392750,7.26,207.3,207.23,0.03479672]
[1756989392958,67.4961,207.36,207.23,0.03479672]
[1756989393160,7.26,207.35,207.24,7.46]
[1756989393358,4.3393,207.34,207.24,7.46]
[1756989393559,7.26,207.35,207.27,0.03686973]
[1756989393861,79.0974,207.35,207.27,0.03686973]
[1756989394161,67.5016,207.34,207.27,0.03686973]
[1756989394551,67.5044,207.33,207.27,0.03686973]
[1756989394758,7.26,207.33,207.27,0.03686973]
[1756989395162,67.4988,207.35,207.27,0.03686973]
[1756989395461,7.26,207.34,207.27,0.03686973]
[1756989396454,7.26,207.3,207.27,0.03686973]
[1756989396759,67.5122,207.31,207.27,0.03686973]
[1756989396950,7.26,207.28,207.27,0.03686973]
[1756989397656,4.3412,207.25,207.14,14.59738677]
[1756989397861,67.5265,207.27,207.14,132.76]
[1756989397862,7.26,207.24,207.14,132.76]
[1756989398057,7.26,207.24,207.14,137.1035]
[1756989398257,67.5223,207.28,207.16,7.46]
[1756989398455,67.5223,207.28,207.16,123.7]
[1756989398861,0.03662395,207.24,207.17,7.46]
[1756989400263,0.03662395,207.24,207.17,11.8028]
[1756989400459,0.03662395,207.24,207.17,7.46]
[1756989401161,0.03662395,207.24,207.17,133.12]
[1756989401356,0.03662395,207.24,207.12,132.31737148]
[1756989401563,0.03662395,207.24,207.12,7.46]
[1756989401759,0.03662395,207.24,207.13,125.64]
[1756989402561,0.03662395,207.24,207.12,7.46]
[1756989402758,67.5413,207.22,207.12,7.46]
[1756989403060,8.0,207.2,207.08,0.84019411]
[1756989403363,4.3431,207.16,207.08,126.58019411]
[1756989403561,4.37623683,207.16,207.08,126.58019411]
[1756989403765,8.0,207.15,207.07,7.99]
[1756989404363,4.344,207.13,207.07,7.99]
[1756989404565,67.5679,207.14,207.03,7.99]
[1756989404765,67.5679,207.14,207.03,92.23]
[1756989404961,4.3443,207.11,207.03,7.99]
[1756989405168,12.3443,207.11,207.03,7.99]
[1756989405362,8.0,207.16,207.03,7.99]
[1756989405563,67.5397,207.23,207.02,7.13738677]
[1756989405564,0.03588414,207.09,207.06,7.13738677]
[1756989406070,8.0,207.21,207.09,7.99]
[1756989406463,4.3428,207.18,207.09,7.99]
[1756989406676,8.0,207.21,207.09,135.15]
[1756989406873,8.0,207.21,207.1,7.99]
[1756989407080,310.68,207.26,207.1,7.13738677]
[1756989407380,8.0,207.22,207.08,7.99]
[1756989407680,8.0,207.22,207.09,110.88]
[1756989407884,8.0,207.22,207.09,127.94]
[1756989408078,8.0,207.22,207.1,7.99]
[1756989408879,8.0,207.22,207.14,0.031436]
[1756989409080,67.5439,207.21,207.14,0.031436]
[1756989409477,4.343,207.17,207.14,0.031436]
[1756989409785,8.0,207.16,207.14,0.031436]
[1756989410082,4.3423,207.2,207.14,0.031436]
[1756989410582,8.0,207.21,207.14,0.031436]
[1756989410881,67.535,207.24,207.14,0.031436]
[1756989411083,8.0,207.25,207.14,0.031436]
[1756989411278,4.3415,207.24,207.14,0.031436]
[1756989411591,192.53738078,207.29,207.15,7.99]
[1756989411780,67.5263,207.27,207.18,7.99]
[1756989412281,67.521,207.28,207.18,7.99]
[1756989412584,192.53738078,207.29,207.2,0.03330623]
[1756989412782,192.53738078,207.29,207.21,7.99]
[1756989412978,8.0,207.29,207.21,7.99]
[1756989413180,12.3405,207.29,207.21,7.99]
[1756989413378,8.0,207.35,207.21,12.332]
[1756989413679,0.03449963,207.27,207.21,12.332]
[1756989413879,0.03449963,207.27,207.21,7.99]
[1756989414075,0.03449963,207.27,207.26,0.03130501]
[1756989415087,0.03449963,207.27,207.07,8.07872744]
[1756989415088,8.03449963,207.27,207.15,7.99]
[1756989415283,8.0,207.27,207.15,7.99]
[1756989416990,4.3412,207.25,207.15,12.3331]
[1756989417194,0.0323858,207.23,207.15,12.3331]
[1756989418787,0.0323858,207.23,207.17,7.13738677]
[1756989419395,0.0323858,207.23,207.22,7.99]
[1756989420297,8.0,207.36,207.22,8.47]
[1756989420495,8.0,207.36,207.26,7.99]
[1756989420889,4.3393,207.35,207.26,7.99]
[1756989421090,8.0,207.36,207.26,7.99]
[1756989421492,8.0,207.42,207.3,7.99]
[1756989421692,3.68548493,207.41,207.31,125.98]
[1756989421893,8.0,207.42,207.33,7.13738677]
[1756989422201,8.0,207.42,207.34,7.99]
[1756989422687,8.0,207.42,207.36,0.03472738]
[1756989422889,8.0,207.49,207.37,7.13738677]
[1756989423093,8.0,207.49,207.37,15.12738677]
[1756989423695,8.0,207.49,207.38,7.99]
[1756989423896,8.0,207.49,207.41,0.03058364]
[1756989424095,4.3358,207.51,207.41,7.16797041]
[1756989424301,8.0,207.51,207.41,68.63738677]
[1756989424602,8.0,207.51,207.44,0.03714125]
[1756989425696,12.3358,207.51,207.44,0.03714125]
[1756989425999,8.0,207.56,207.44,8.02714125]
[1756989426199,8.0,207.56,207.44,7.99]
[1756989426396,8.0,207.56,207.45,7.13738677]
[1756989426794,8.0,207.56,207.48,8.02443521]
[1756989427299,8.0,207.56,207.48,137.30443521]
[1756989427500,4.335,207.55,207.48,0.03443521]
[1756989428304,8.0,207.56,207.48,0.03443521]
[1756989428701,4.3345,207.58,207.48,7.17182198]
[1756989429103,4.3348,207.56,207.48,7.17182198]
[1756989429296,4.3348,207.56,207.48,121.27182198]
[1756989429499,4.3348,207.56,207.48,7.17182198]
[1756989429699,4.3348,207.56,207.48,136.27182198]
[1756989429896,4.3342,207.59,207.48,136.21182198]
[1756989430103,67.4227,207.59,207.48,7.17182198]
[1756989430303,8.0,207.58,207.48,7.17182198]
[1756989430500,8.0,207.53,207.48,0.03443521]
[1756989430907,8.0,207.54,207.48,0.03443521]
[1756989431900,12.3357,207.52,207.48,0.03443521]
[1756989432103,8.0,207.52,207.48,0.03443521]
[1756989432406,4.3351,207.55,207.48,0.03443521]
[1756989432906,7.31,207.58,207.48,0.03443521]
[1756989433104,11.6445,207.58,207.48,7.17182198]
[1756989433302,7.31,207.58,207.49,7.87]
[1756989433616,7.31,207.58,207.49,15.00738677]
[1756989433803,4.3345,207.57,207.5,128.72]
[1756989433998,7.31,207.58,207.5,128.72]
[1756989434398,11.6444,207.58,207.5,128.72]
[1756989434604,7.31,207.58,207.5,128.72]
[1756989434911,7.31,207.63,207.52,7.87]
[1756989435712,7.31,207.63,207.53,128.64]
[1756989436412,253.20227485,207.64,207.5,7.13738677]
[1756989436413,7.31,207.6,207.5,7.13738677]
[1756989436711,7.31,207.58,207.49,103.32]
[1756989436904,4.335,207.55,207.49,103.32]
[1756989437400,4.335,207.55,207.48,7.87]
[1756989438100,11.6445,207.58,207.48,7.87]
[1756989438505,11.6445,207.58,207.51,0.03083133]
[1756989439613,4.3347,207.57,207.51,0.03083133]
[1756989441113,4.3349,207.56,207.51,0.03083133]
[1756989441314,7.31,207.55,207.51,0.03083133]
[1756989441812,74.7405,207.56,207.51,0.03083133]
[1756989442010,67.4305,207.56,207.51,0.03083133]
[1756989442211,4.3351,207.55,207.51,0.03083133]
[1756989442412,7.31,207.57,207.51,0.03083133]
[1756989442607,67.4337,207.55,207.51,0.03083133]
[1756989442807,4.3355,207.53,207.51,0.03083133]
[1756989443011,7.31,207.52,207.51,0.03083133]
[1756989445013,4.3355,207.53,207.51,0.03083133]
[1756989445214,11.6455,207.53,207.51,0.03083133]
[1756989445617,7.31,207.53,207.51,0.03083133]
[1756989446110,11.6449,207.55,207.51,0.03083133]
[1756989446314,4.3346,207.57,207.51,0.03083133]
[1756989446522,265.9566833,207.64,207.51,4.11713978]
[1756989446523,7.31,207.59,207.51,4.11713978]
[1756989446709,7.31,207.59,207.51,4.08630845]
[1756989447612,7.31,207.59,207.51,131.66630845]
[1756989447818,193.10817485,207.64,207.52,7.87]
[1756989448011,193.10817485,207.64,207.54,4.08630845]
[1756989448409,197.44137485,207.64,207.54,4.08630845]
[1756989448716,193.10817485,207.64,207.57,0.03080609]
[1756989449506,193.10817485,207.64,207.57,4.11711454]
[1756989450617,197.44137485,207.64,207.57,4.11711454]
[1756989452313,193.10817485,207.64,207.57,4.11711454]
[1756989452508,7.31,207.64,207.57,4.11711454]
[1756989453712,11.6438,207.61,207.57,4.11711454]
[1756989455018,4.3333,207.63,207.57,4.11711454]
[1756989455618,67.3947,207.67,207.57,4.11711454]
[1756989455619,7.31,207.61,207.57,4.11711454]
[1756989456020,7.31,207.6,207.57,0.03080609]
[1756989457220,7.31,207.59,207.57,0.03080609]
[1756989457418,7.31,207.62,207.57,0.03080609]
[1756989457719,67.4074,207.63,207.57,0.03080609]
[1756989458220,7.31,207.64,207.57,0.03080609]
[1756989458816,7.31,207.64,207.57,4.11711454]
[1756989459814,4.3333,207.63,207.57,4.11711454]
[1756989460018,7.31,207.64,207.57,0.03080609]
[1756989460616,7.31,207.64,207.57,4.11711454]
[1756989460919,67.3799,207.72,207.57,11.98711454]
[1756989461119,4.3323,207.68,207.6,4.08630845]
[1756989461720,4.3323,207.68,207.62,0.03053855]
[1756989461918,4.3326,207.67,207.62,0.03053855]
[1756989462122,7.31,207.7,207.62,0.03053855]
[1756989462715,7.32,207.66,207.62,0.03053855]
[1756989463519,7.32,207.65,207.62,0.03053855]
[1756989464522,7.32,207.69,207.62,0.03053855]
[1756989465225,67.3942,207.67,207.62,0.03053855]
[1756989465426,7.32,207.66,207.62,0.03053855]
[1756989465725,7.32,207.63,207.54,4.0110712]
[1756989465917,7.32,207.61,207.5,4.0110712]
[1756989466119,7.32,207.61,207.49,8.09737965]
[1756989466316,4.3346,207.57,207.49,8.09737965]
[1756989466815,4.3349,207.56,207.49,8.09737965]
[1756989467922,4.3349,207.56,207.49,4.08630845]
[1756989468122,4.3351,207.55,207.49,4.08630845]
[1756989468428,4.3351,207.55,207.49,8.09737965]
[1756989469122,7.32,207.58,207.49,8.09737965]
[1756989469518,7.32,207.55,207.47,4.0110712]
[1756989470520,0.03048171,207.56,207.48,12.06630845]
[1756989470727,0.03048171,207.56,207.5,4.0110712]
[1756989470930,0.03048171,207.56,207.51,4.08630845]
[1756989471231,0.03048171,207.56,207.52,7.98]
[1756989471433,0.03048171,207.56,207.51,4.08630845]
[1756989471624,0.03048171,207.56,207.52,7.98]
[1756989471826,0.03048171,207.56,207.55,7.98]
[1756989472828,4.3335,207.62,207.55,7.98]
[1756989473330,11.6531,207.64,207.55,7.98]
[1756989473536,7.32,207.64,207.55,7.98]
[1756989474029,67.383,207.71,207.53,4.0110712]
[1756989474030,7.32,207.61,207.53,4.0110712]
[1756989474223,7.32,207.61,207.5,4.0110712]
[1756989474428,7.32,207.61,207.49,7.98]
[1756989474429,7.32,207.61,207.51,4.0110712]
[1756989474732,7.32,207.61,207.51,8.09737965]
[1756989474926,4.3339,207.6,207.51,12.43297965]
[1756989475132,7.32,207.61,207.51,8.09737965]
[1756989475333,7.32,207.61,207.52,11.9910712]
[1756989475531,7.32,207.61,207.54,8.09737965]
[1756989475928,7.32,207.61,207.54,12.43247965]
[1756989476130,7.32,207.61,207.54,8.09737965]
[1756989476332,7.32,207.61,207.55,0.03066685]
[1756989476536,11.6539,207.61,207.55,0.03066685]
[1756989477330,11.6533,207.63,207.58,4.08630845]
[1756989477637,7.32,207.63,207.58,12.06630845]
[1756989478238,67.3979,207.66,207.58,4.08630845]
[1756989478532,67.3979,207.66,207.55,4.0110712]
[1756989478533,74.7212,207.65,207.55,4.08630845]
[1756989478732,7.32,207.59,207.55,4.08630845]
[1756989479932,4.3335,207.62,207.55,12.06630845]
[1756989480539,7.32,207.64,207.55,4.08630845]
[1756989480735,7.32,207.64,207.53,4.0110712]
[1756989480736,7.32,207.61,207.52,8.09737965]
[1756989481049,7.32,207.59,207.52,4.08630845]
[1756989481333,7.32,207.59,207.5,4.0110712]
[1756989481334,7.32,207.59,207.5,11.9910712]
[1756989481540,67.4233,207.58,207.53,0.03047331]
[1756989481733,11.6553,207.54,207.53,0.03047331]
[1756989485542,7.32,207.54,207.53,0.03047331]
[1756989485741,7.32,207.59,207.53,0.03047331]
[1756989486645,4.3345,207.57,207.53,0.03047331]
[1756989486842,74.7371,207.6,207.53,0.03047331]
[1756989487150,11.6548,207.56,207.53,0.03047331]
[1756989487446,67.4207,207.59,207.53,0.03047331]
[1756989487642,7.32,207.6,207.53,0.03047331]
[1756989488948,11.6548,207.56,207.53,0.03047331]
[1756989490148,7.32,207.54,207.53,0.03047331]
[1756989492051,7.32,207.54,207.47,4.0110712]
[1756989492249,7.32,207.54,207.44,8.09737965]
[1756989492550,67.4343,207.55,207.44,8.09737965]
[1756989492551,7.77,207.52,207.44,8.09737965]
[1756989492745,7.77,207.52,207.44,4.08630845]
[1756989493345,67.444,207.52,207.44,4.08630845]
[1756989493543,7.77,207.51,207.44,4.08630845]
[1756989494246,7.77,207.48,207.44,4.08630845]
[1756989494552,7.77,207.51,207.41,133.87737965]
[1756989495044,7.80085629,207.48,207.41,133.87737965]
[1756989495251,7.77,207.47,207.41,125.78]
[1756989495844,4.3372,207.45,207.41,125.78]
[1756989496441,4.3374,207.44,207.41,125.78]
[1756989497544,7.77,207.45,207.41,125.78]
[1756989497742,4.3368,207.47,207.41,129.86630845]
[1756989498148,0.03085629,207.48,207.41,129.86630845]
[1756989498149,0.03085629,207.48,207.44,4.08630845]
[1756989498349,0.03085629,207.48,207.44,7.39]
[1756989499550,7.80085629,207.48,207.42,4.08630845]
[1756989499855,7.80085629,207.48,207.38,136.95630845]
[1756989500551,4.3373,207.44,207.38,136.95630845]
[1756989500849,7.77,207.48,207.38,11.47630845]
[1756989501050,67.4731,207.43,207.35,4.0110712]
[1756989501258,7.77,207.42,207.34,7.39]
[1756989501549,7.77,207.42,207.33,415.84737965]
[1756989502059,4.3378,207.42,207.36,4.08630845]
[1756989502956,0.03062467,207.41,207.37,7.39]
[1756989503149,7.77,207.46,207.4,7.39]
[1756989503749,7.77,207.46,207.39,11.47630845]
[1756989503951,75.2196,207.5,207.39,11.47630845]
[1756989504855,7.77,207.5,207.42,4.08630845]
[1756989505956,4.3363,207.49,207.42,4.08630845]
[1756989506256,7.77,207.5,207.42,11.47630845]
[1756989506457,12.1067,207.47,207.42,7.39]
[1756989506648,7.77,207.5,207.41,4.08630845]
[1756989507057,7.77,207.49,207.4,4.08630845]
[1756989507461,7.77,207.49,207.38,132.47]
[1756989507955,67.4596,207.47,207.38,7.39]
[1756989508154,7.77,207.46,207.34,95.65]
[1756989508954,4.3378,207.42,207.34,95.65]
[1756989509857,4.3371,207.45,207.35,4.339]
[1756989510058,4.3371,207.45,207.36,0.03094204]
[1756989510253,4.3371,207.45,207.37,14.50895263]
[1756989511359,4.3371,207.45,207.37,18.84755263]
[1756989511555,7.77,207.46,207.37,14.50895263]
[1756989511760,4.3367,207.47,207.37,14.50895263]
[1756989512257,4.3363,207.49,207.4,7.39]
[1756989512456,4.3363,207.49,207.42,7.39]
[1756989514958,67.4336,207.55,207.42,7.39]
[1756989514959,4.3358,207.51,207.42,11.7275]
[1756989515366,7.77,207.52,207.42,11.7275]
[1756989515563,4.3361,207.5,207.42,7.39]
[1756989515870,7.77,207.52,207.42,7.39]
[1756989516274,4.3365,207.48,207.42,7.39]
[1756989516868,4.3367,207.47,207.41,7.11895263]
[1756989517176,7.77,207.46,207.43,0.03044466]
[1756989517368,4.3354,207.53,207.43,0.03044466]
[1756989517564,7.77,207.53,207.43,0.03044466]
[1756989518165,4.3361,207.5,207.43,0.03044466]
[1756989518370,75.211,207.53,207.43,0.03044466]
[1756989518567,7.77,207.51,207.43,0.03044466]
[1756989518770,4.3363,207.49,207.43,0.03044466]
[1756989519273,4.3365,207.48,207.43,0.03044466]
[1756989519474,7.77,207.47,207.43,0.03044466]
[1756989519971,7.77,207.46,207.43,0.03044466]
[1756989520576,7.77,207.5,207.43,0.03044466]
[1756989521078,7.77,207.45,207.43,0.03044466]
[1756989522778,7.38,207.54,207.43,7.50044466]
[1756989522983,7.38,207.54,207.44,7.11895263]
[1756989524176,67.4361,207.54,207.44,7.11895263]
[1756989524379,74.8233,207.52,207.43,0.03044466]
[1756989526580,4.3369,207.46,207.43,0.03044466]
[1756989526784,7.38,207.45,207.43,0.03044466]
[1756989529192,7.38,207.44,207.43,0.03044466]
[1756989532082,4.3372,207.45,207.43,0.03044466]
[1756989532287,11.7172,207.45,207.43,0.03044466]
[1756989532989,4.3372,207.45,207.43,0.03044466]
[1756989533189,7.38,207.44,207.43,0.03044466]
[1756989534981,4.3377,207.42,207.36,4.02992317]
[1756989535187,74.8495,207.44,207.35,4.02992317]
[1756989535987,4.3382,207.4,207.36,7.47]
[1756989536189,11.7182,207.4,207.36,7.47]
[1756989536690,11.7182,207.4,207.33,314.5994]
[1756989536691,11.7184,207.39,207.34,4.02992317]
[1756989536881,7.38,207.39,207.35,7.47]
[1756989538784,0.03412271,207.4,207.34,4.02992317]
[1756989538984,7.38,207.39,207.33,314.28992317]
[1756989539188,7.38,207.39,207.34,7.47]
[1756989539795,7.41412271,207.4,207.33,314.28992317]
[1756989540797,7.38,207.39,207.32,4.02992317]
[1756989540997,7.38,207.39,207.3,7.47]
[1756989540998,74.8656,207.39,207.31,4.02992317]
[1756989541194,7.38,207.38,207.3,128.40992317]
[1756989541789,4.3389,207.37,207.3,128.40992317]
[1756989541993,7.38,207.38,207.3,128.40992317]
[1756989542897,4.36959002,207.36,207.3,128.40992317]
[1756989543095,4.36959002,207.36,207.3,124.38]
[1756989543497,4.3394,207.34,207.3,124.38]
[1756989543792,7.38,207.35,207.28,4.02992317]
[1756989543997,7.38,207.35,207.27,128.42992317]
[1756989544198,7.38,207.34,207.26,4.02992317]
[1756989544388,7.38,207.34,207.24,4.02992317]
[1756989544697,4.3403,207.3,207.24,4.02992317]
[1756989544894,7.38,207.31,207.23,83.03]
[1756989545597,4.3405,207.29,207.23,83.03]
[1756989546001,4.3405,207.29,207.23,7.47]
[1756989546402,7.38,207.31,207.23,7.47]
[1756989546600,0.03482467,207.32,207.23,7.47]
[1756989546793,0.03482467,207.32,207.24,7.47]
[1756989547003,0.03482467,207.32,207.2,5.38581829]
[1756989547004,67.528,207.26,207.18,4.02992317]
[1756989547296,7.38,207.25,207.16,7.47]
[1756989547495,0.03654086,207.24,207.16,7.47]
[1756989548098,0.03654086,207.24,207.18,7.47]
[1756989551401,0.03654086,207.24,207.23,2.55955148]
[1756989551596,0.03654086,207.24,207.23,10.02955148]
[1756989551798,0.03654086,207.24,207.15,72.94771829]
[1756989551799,0.03654086,207.24,207.21,124.44]
[1756989552403,0.03654086,207.24,207.22,7.68]
[1756989552599,0.03654086,207.24,207.21,124.44]
[1756989552795,0.03654086,207.24,207.23,10.23955148]
[1756989553202,7.38,207.33,207.23,3.03955148]
[1756989553505,4.3397,207.32,207.26,2.55955148]
[1756989554600,4.3397,207.32,207.27,7.71377597]
[1756989554796,4.3401,207.31,207.27,7.71377597]
[1756989554997,74.8823,207.34,207.27,0.03377597]
[1756989556106,7.38,207.34,207.27,0.03377597]
[1756989556704,7.38,207.31,207.27,0.03377597]